bitfinex-derivatives/quotes_BTCF0:USTF0_20250609
["timestamp","ask_amount","ask_price","bid_price","bid_amount"]
[1749481746436,0.7107998,107800.0,107790.0,0.48940847]
[1749481746736,0.6717998,107800.0,107790.0,0.48940847]
[1749481746932,0.6721998,107800.0,107790.0,0.48940847]
[1749481747439,0.1468398,107800.0,107790.0,0.48940847]
[1749481747640,0.1468398,107800.0,107790.0,1.03968513]
[1749481747938,0.6718398,107800.0,107790.0,1.03968513]
[1749481748140,0.1468398,107800.0,107790.0,1.03968513]
[1749481748340,0.6722398,107800.0,107790.0,1.03968513]
[1749481748533,0.6718398,107800.0,107790.0,1.03968513]
[1749481748736,0.6722398,107800.0,107790.0,1.03968513]
[1749481749739,0.6722398,107800.0,107790.0,1.04468513]
[1749481750837,0.7112398,107800.0,107790.0,1.04468513]
[1749481751836,0.0004,107800.0,107790.0,1.04468513]
[1749481752037,0.5258,107800.0,107790.0,1.04468513]
[1749481752235,0.7112398,107800.0,107790.0,1.04468513]
[1749481752438,0.7108398,107800.0,107790.0,1.04468513]
[1749481752639,0.7112398,107800.0,107790.0,1.04468513]
[1749481752839,0.1858398,107800.0,107790.0,1.04468513]
[1749481753138,0.7112398,107800.0,107790.0,1.04468513]
[1749481753338,0.7112398,107800.0,107790.0,1.04568513]
[1749481753947,0.6722398,107800.0,107790.0,1.04568513]
[1749481754941,0.6722398,107800.0,107790.0,1.16093669]
[1749481755248,0.5258,107800.0,107790.0,1.16093669]
[1749481755643,0.0004,107800.0,107790.0,1.18889105]
[1749481755844,0.7112398,107800.0,107790.0,1.18889105]
[1749481758241,0.7112398,107800.0,107790.0,1.16091876]
[1749481758547,0.7108398,107800.0,107790.0,1.16091876]
[1749481758746,0.7112398,107800.0,107790.0,1.16091876]
[1749481759640,0.5258,107800.0,107790.0,1.16091876]
[1749481760249,0.7112398,107800.0,107790.0,1.16091876]
[1749481760945,0.6762964,107800.0,107790.0,1.16091876]
[1749481763849,0.6762964,107800.0,107790.0,1.04568513]
[1749481764455,0.6762964,107800.0,107790.0,1.16098348]
[1749481765655,0.7152164,107800.0,107790.0,1.04568513]
[1749481765853,0.7152164,107800.0,107790.0,0.85620847]
[1749481766057,0.7152164,107800.0,107790.0,0.82836653]
[1749481766258,0.7867164,107800.0,107790.0,0.82836653]
[1749481766653,0.7867164,107800.0,107790.0,0.90166653]
[1749481767860,0.7152164,107800.0,107790.0,0.90166653]
[1749481768162,0.6762164,107800.0,107790.0,0.90166653]
[1749481768358,0.6762164,107800.0,107790.0,0.54086653]
[1749481768562,1.48236972,107800.0,107790.0,0.21410953]
[1749481768859,1.72409834,107800.0,107790.0,0.09875147]
[1749481770271,0.1854914,107770.0,107760.0,0.14320592]
[1749481770470,0.1855087,107760.0,107750.0,0.39722812]
[1749481770768,0.2519087,107760.0,107750.0,0.75765634]
[1749481770969,0.2519087,107760.0,107750.0,0.85045945]
[1749481771270,0.00010607,107760.0,107750.0,1.10683611]
[1749481771770,0.7108687,107760.0,107750.0,1.24597591]
[1749481771968,0.7112687,107760.0,107750.0,1.05649925]
[1749481772566,0.71138216,107760.0,107750.0,1.05649925]
[1749481772962,0.75838155,107760.0,107750.0,1.05649925]
[1749481773364,0.75838155,107760.0,107750.0,0.91366511]
[1749481773969,0.83306151,107760.0,107750.0,0.91366511]
[1749481774372,0.64755281,107760.0,107750.0,0.91366511]
[1749481774571,0.83306141,107760.0,107750.0,0.91366511]
[1749481774871,0.30770141,107760.0,107750.0,0.91366511]
[1749481775079,0.83310141,107760.0,107750.0,0.91366511]
[1749481776080,0.83715801,107760.0,107750.0,0.91366511]
[1749481777881,0.83715801,107760.0,107750.0,1.10314177]
[1749481779283,0.12624941,107760.0,107750.0,1.10314177]
[1749481779483,0.65124941,107760.0,107750.0,1.10314177]
[1749481779685,0.65164941,107760.0,107750.0,1.10314177]
[1749481779979,0.12624941,107760.0,107750.0,1.10314177]
[1749481780181,0.12624941,107760.0,107750.0,1.19594177]
[1749481780182,0.60469002,107760.0,107750.0,1.19594177]
[1749481780381,0.60429002,107760.0,107750.0,1.4549412]
[1749481780682,0.60469002,107760.0,107750.0,1.24704267]
[1749481781081,0.60465002,107760.0,107750.0,1.24704267]
[1749481781283,0.59378491,107760.0,107750.0,1.24704267]
[1749481781786,0.57871865,107760.0,107750.0,1.24704267]
[1749481782284,0.57879644,107760.0,107750.0,1.24704267]
[1749481782487,0.57839644,107760.0,107750.0,1.24704267]
[1749481782679,0.05339644,107760.0,107750.0,1.24704267]
[1749481782877,0.57879644,107760.0,107750.0,1.24704267]
[1749481783381,0.57879644,107760.0,107750.0,1.10314177]
[1749481783583,0.00013894,107770.0,107760.0,0.1855087]
[1749481783884,0.52502822,107780.0,107770.0,0.2318611]
[1749481784085,0.52502822,107780.0,107770.0,1.03177737]
[1749481784782,0.52511591,107780.0,107770.0,1.12457187]
[1749481785387,8.769e-05,107780.0,107770.0,1.12457187]
[1749481785587,0.52548769,107780.0,107770.0,1.12457187]
[1749481785881,0.52588769,107780.0,107770.0,1.12457187]
[1749481786082,0.59847194,107780.0,107770.0,1.12457187]
[1749481786481,0.64575609,107780.0,107770.0,1.12457187]
[1749481786686,0.07307194,107780.0,107770.0,1.12457187]
[1749481786987,0.49859194,107780.0,107770.0,1.15343316]
[1749481787286,0.49899194,107780.0,107770.0,1.15343316]
[1749481789192,0.50304854,107780.0,107770.0,1.15343316]
[1749481789387,0.07712854,107780.0,107770.0,1.15343316]
[1749481789890,0.07672854,107780.0,107770.0,1.15343316]
[1749481790091,0.07712854,107780.0,107770.0,1.15343316]
[1749481791883,0.06206518,107780.0,107770.0,1.15343316]
[1749481792090,0.0044566,107780.0,107770.0,1.15343316]
[1749481792992,0.00454599,107780.0,107770.0,1.15343316]
[1749481793494,0.00414599,107780.0,107770.0,1.15343316]
[1749481793694,0.00454599,107780.0,107770.0,1.15343316]
[1749481794395,0.00454599,107780.0,107770.0,1.24621716]
[1749481794697,0.00454599,107780.0,107770.0,1.15343316]
[1749481794890,0.00454599,107780.0,107770.0,1.00953226]
[1749481795083,0.07723728,107780.0,107770.0,1.21002055]
[1749481795289,0.00454599,107780.0,107770.0,1.21002055]
[1749481795489,0.00414599,107780.0,107770.0,1.30280455]
[1749481795696,0.00454599,107780.0,107770.0,1.30280455]
[1749481795996,9e-08,107780.0,107770.0,1.44663051]
[1749481796191,0.90697903,107800.0,107790.0,0.1854574]
[1749481796398,0.90697903,107800.0,107790.0,1.21158883]
[1749481796590,0.90697903,107800.0,107790.0,1.34358883]
[1749481796785,0.90697903,107800.0,107790.0,1.43637472]
[1749481796989,0.95310911,107800.0,107790.0,1.43637472]
[1749481798994,1.0285811,107800.0,107790.0,1.43637472]
[1749481799189,0.6027411,107800.0,107790.0,1.43637472]
[1749481799394,0.98292509,107800.0,107790.0,1.43637472]
[1749481799595,0.98292509,107800.0,107790.0,1.46513841]
[1749481799794,0.55712509,107800.0,107790.0,1.46513841]
[1749481799995,0.55672509,107800.0,107790.0,1.46513841]
[1749481800301,0.55712509,107800.0,107790.0,1.46513841]
[1749481800891,0.55672509,107800.0,107790.0,1.46513841]
[1749481801196,0.55712509,107800.0,107790.0,1.46513841]
[1749481801698,0.55712509,107800.0,107790.0,1.43626453]
[1749481802496,0.17538606,107800.0,107790.0,1.43626453]
[1749481803397,6e-08,107800.0,107790.0,1.46513841]
[1749481803600,0.00013894,107810.0,107790.0,1.27968101]
[1749481803601,0.486299,107810.0,107790.0,1.27968101]
[1749481803894,0.486299,107810.0,107800.0,0.98323182]
[1749481804099,0.486699,107810.0,107800.0,0.98323182]
[1749481804394,0.48676585,107810.0,107800.0,0.98323182]
[1749481804701,0.48676585,107810.0,107800.0,1.07599619]
[1749481804899,0.55086585,107810.0,107800.0,1.07599619]
[1749481805197,0.59623031,107810.0,107800.0,1.07599619]
[1749481806492,0.78165331,107810.0,107800.0,1.01159619]
[1749481806697,0.85155331,107810.0,107800.0,0.94339619]
[1749481806898,0.92725774,107810.0,107800.0,0.94339619]
[1749481807095,0.74183474,107810.0,107800.0,0.94339619]
[1749481810099,0.74183474,107810.0,107800.0,1.30419619]
[1749481810500,0.74183474,107810.0,107800.0,1.32600619]
[1749481811503,0.70283474,107810.0,107800.0,1.32600619]
[1749481813904,0.88825774,107810.0,107800.0,1.13652953]
[1749481814406,0.70283474,107810.0,107800.0,1.13652953]
[1749481814902,0.70283474,107810.0,107800.0,1.32600619]
[1749481815699,0.70283474,107810.0,107800.0,1.13652953]
[1749481815906,0.70283474,107810.0,107800.0,1.32600619]
[1749481816506,0.25553574,107810.0,107800.0,1.32600619]
[1749481816701,0.78057574,107810.0,107800.0,1.32600619]
[1749481818105,0.07617128,107810.0,107800.0,1.32600619]
[1749481818304,0.07617128,107810.0,107800.0,1.74398625]
[1749481818607,0.03717128,107810.0,107800.0,1.94447454]
[1749481818807,0.03717128,107810.0,107800.0,1.61117942]
[1749481818808,0.0004,107810.0,107800.0,1.61117942]
[1749481819709,0.00050641,107810.0,107800.0,1.80065608]
[1749481820008,0.07329843,107810.0,107800.0,1.80065608]
[1749481820209,0.00050641,107810.0,107800.0,1.80065608]
[1749481820504,0.00050641,107810.0,107800.0,1.80465608]
[1749481821311,0.00050641,107810.0,107800.0,1.85097719]
[1749481823205,1e-08,107810.0,107800.0,1.85097719]
[1749481823407,0.0994,107830.0,107810.0,0.2781274]
[1749481823610,0.0994,107830.0,107820.0,1.44049594]
[1749481824012,0.0994,107830.0,107820.0,1.59003072]
[1749481824211,0.236,107840.0,107830.0,0.1853885]
[1749481824408,0.59331624,107840.0,107830.0,1.01237838]
[1749481824605,0.16763624,107840.0,107830.0,1.01237838]
[1749481824807,0.00051624,107840.0,107830.0,1.10512125]
[1749481825110,0.42044,107850.0,107840.0,0.1853714]
[1749481825310,0.51976,107850.0,107840.0,1.07954136]
[1749481825509,0.51976,107850.0,107840.0,1.05074222]
[1749481825712,0.48116,107850.0,107840.0,1.14347648]
[1749481825911,0.48084278,107850.0,107840.0,1.14347648]
[1749481826217,0.48124278,107850.0,107840.0,1.14347648]
[1749481826807,0.55354041,107850.0,107840.0,1.16527648]
[1749481827616,0.97906041,107850.0,107840.0,1.16527648]
[1749481827817,0.97906041,107850.0,107840.0,1.16827648]
[1749481828017,1.02516972,107850.0,107840.0,1.16827648]
[1749481828218,1.08996972,107850.0,107840.0,1.16827648]
[1749481828418,1.08996972,107850.0,107840.0,1.05348232]
[1749481829414,0.45422041,107850.0,107840.0,1.05348232]
[1749481829913,0.17170041,107850.0,107840.0,1.16827648]
[1749481830320,0.17210041,107850.0,107840.0,1.16827648]
[1749481832515,0.25773441,107850.0,107840.0,1.16827648]
[1749481832716,0.13758041,107850.0,107840.0,1.03767648]
[1749481832921,0.38593441,107850.0,107840.0,1.03767648]
[1749481833128,0.20058041,107850.0,107840.0,1.03767648]
[1749481833315,0.20058041,107850.0,107840.0,0.84819982]
[1749481833519,0.20058041,107850.0,107840.0,0.92288232]
[1749481833724,0.20058041,107850.0,107840.0,0.84819982]
[1749481833925,0.20058041,107850.0,107840.0,0.66370566]
[1749481834125,0.20058041,107850.0,107840.0,0.85318232]
[1749481834326,0.38593441,107850.0,107840.0,0.85218232]
[1749481834527,0.20058041,107850.0,107840.0,0.85218232]
[1749481834826,0.20058041,107850.0,107840.0,0.66270566]
[1749481835026,0.38593441,107850.0,107840.0,0.85218232]
[1749481835320,0.20058041,107850.0,107840.0,0.85218232]
[1749481835522,0.38593441,107850.0,107840.0,0.66270566]
[1749481835722,0.38593441,107850.0,107840.0,0.30190566]
[1749481839024,0.57541107,107850.0,107840.0,0.30190566]
[1749481839728,0.93621107,107850.0,107840.0,0.30190546]
[1749481840430,0.93621107,107850.0,107840.0,0.29990546]
[1749481841233,0.57541107,107850.0,107840.0,0.29990546]
[1749481841633,0.38593441,107850.0,107840.0,0.29990546]
[1749481842329,0.29986041,107850.0,107840.0,0.29990546]
[1749481842536,0.91017431,107850.0,107840.0,0.29990546]
[1749481843133,0.91017431,107850.0,107840.0,0.48938212]
[1749481843335,0.91057431,107850.0,107840.0,0.48938212]
[1749481843535,0.91017431,107850.0,107840.0,0.48938212]
[1749481843726,0.91057431,107850.0,107840.0,0.48938212]
[1749481843936,0.91057431,107850.0,107840.0,0.49238212]
[1749481844738,0.91057431,107850.0,107840.0,0.30290546]
[1749481846440,0.91057431,107850.0,107840.0,0.30190546]
[1749481846841,0.87157431,107850.0,107840.0,0.30190546]
[1749481847542,0.87157431,107850.0,107840.0,0.29990546]
[1749481847837,1.06116117,107850.0,107840.0,0.11453426]
[1749481848042,1.06116117,107850.0,107840.0,0.29990536]
[1749481848437,2.09228117,107850.0,107840.0,0.11453426]
[1749481848644,0.1853711,107840.0,107830.0,0.009]
[1749481848941,0.96447677,107840.0,107830.0,0.009]
[1749481849146,0.96447677,107840.0,107830.0,0.10172567]
[1749481849347,2.46447677,107840.0,107830.0,0.10172567]
[1749481849541,2.46447677,107840.0,107830.0,0.28711397]
[1749481849739,2.46447677,107840.0,107830.0,0.10172567]
[1749481849941,2.46447677,107840.0,107830.0,0.28711397]
[1749481850132,2.46547677,107840.0,107830.0,0.28711397]
[1749481851745,2.42384776,107840.0,107830.0,0.28711397]
[1749481853346,2.42384776,107840.0,107830.0,0.10172567]
[1749481853849,2.47758376,107840.0,107830.0,0.10172567]
[1749481854150,2.51917722,107840.0,107830.0,0.10172567]
[1749481854448,2.51917722,107840.0,107830.0,0.12839567]
[1749481855849,3.04377722,107840.0,107830.0,0.12839567]
[1749481856146,1.54417722,107840.0,107830.0,0.12839567]
[1749481856341,1.54417722,107840.0,107830.0,0.11939567]
[1749481856547,1.50258376,107840.0,107830.0,0.11939567]
[1749481858141,0.97798376,107840.0,107830.0,0.30478397]
[1749481858343,1.50262376,107840.0,107830.0,0.30478397]
[1749481858944,1.50262376,107840.0,107830.0,0.11939567]
[1749481859450,1.50222376,107840.0,107830.0,0.11939567]
[1749481859646,1.5439421,107840.0,107830.0,0.11939567]
[1749481860438,1.5439421,107840.0,107830.0,0.30478397]
[1749481860943,1.22232944,107840.0,107830.0,0.30478397]
[1749481861142,0.69808944,107840.0,107830.0,0.36618397]
[1749481861341,1.22272944,107840.0,107830.0,0.36618397]
[1749481861543,1.41220965,107840.0,107830.0,0.36618397]
[1749481862053,0.69809299,107840.0,107830.0,0.36618397]
[1749481862347,0.69769299,107840.0,107830.0,0.36618397]
[1749481862554,0.14969299,107840.0,107830.0,0.72698397]
[1749481862744,0.1087711,107840.0,107830.0,0.79258397]
[1749481862944,0.001,107840.0,107830.0,0.98206063]
[1749481863145,0.0014,107840.0,107830.0,0.98206063]
[1749481863354,0.526,107840.0,107830.0,0.98206063]
[1749481863548,0.001,107840.0,107830.0,0.98206063]
[1749481863851,0.526,107840.0,107830.0,0.98206063]
[1749481864451,0.10064,107840.0,107830.0,0.98206063]
[1749481864652,0.526,107840.0,107830.0,1.09685479]
[1749481865351,0.0014,107840.0,107830.0,1.09685479]
[1749481865548,0.5256,107840.0,107830.0,1.09685479]
[1749481865753,0.526,107840.0,107830.0,1.09685479]
[1749481865950,0.7109711,107840.0,107830.0,1.09685479]
[1749481866454,0.7113711,107840.0,107830.0,1.09685479]
[1749481866651,0.526,107840.0,107830.0,1.09685479]
[1749481866852,0.0014,107840.0,107830.0,1.09685479]
[1749481867149,0.42676,107840.0,107830.0,0.98206063]
[1749481867651,0.42676,107840.0,107830.0,1.12565393]
[1749481868049,0.7103711,107840.0,107830.0,1.12565393]
[1749481869053,0.525,107840.0,107830.0,1.09698542]
[1749481869254,0.7103711,107840.0,107830.0,1.09698542]
[1749481871549,0.525,107840.0,107830.0,1.09698542]
[1749481872654,0.7103711,107840.0,107830.0,1.09698542]
[1749481872854,0.525,107840.0,107830.0,1.09698542]
[1749481873256,0.09964,107840.0,107830.0,1.09698542]
[1749481873553,0.09964,107840.0,107830.0,1.12565393]
[1749481874057,0.09924,107840.0,107830.0,1.32614222]
[1749481874259,0.09964,107840.0,107830.0,1.32614222]
[1749481874462,0.09964,107840.0,107830.0,1.12565393]
[1749481875553,0.09964,107840.0,107830.0,1.12865393]
[1749481876358,0.09924,107840.0,107830.0,1.12865393]
[1749481876745,0.03349061,107850.0,107840.0,0.1853711]
[1749481876954,0.0622,107870.0,107860.0,0.1853368]
[1749481876955,0.52668,107870.0,107860.0,0.1853368]
[1749481877158,0.2316329,107880.0,107870.0,0.1853196]
[1749481877350,1.4477102,107890.0,107880.0,0.1853024]
[1749481877658,1.4477102,107890.0,107880.0,0.6092024]
[1749481877857,1.4477102,107890.0,107880.0,0.70192807]
[1749481878047,1.44779132,107890.0,107880.0,0.70192807]
[1749481878244,1.44819132,107890.0,107880.0,0.70192807]
[1749481878759,1.52233684,107890.0,107880.0,0.70192807]
[1749481879156,1.09237684,107890.0,107880.0,0.70192807]
[1749481879656,1.52649684,107890.0,107880.0,0.70192807]
[1749481879860,1.52749684,107890.0,107880.0,0.70192807]
[1749481880055,1.56566837,107890.0,107880.0,0.70192807]
[1749481881346,1.56566837,107890.0,107880.0,0.27802807]
[1749481882659,2.11594503,107890.0,107880.0,0.09272567]
[1749481882957,2.11594503,107890.0,107880.0,0.0387833]
[1749481887751,2.20863303,107890.0,107880.0,0.0387833]
[1749481888362,2.25013847,107890.0,107880.0,0.0387833]
[1749481888662,3.75013847,107890.0,107880.0,0.0387833]
[1749481891265,3.75013847,107890.0,107880.0,0.0654633]
[1749481892464,3.79341417,107890.0,107880.0,0.0654633]
[1749481894165,3.60393751,107890.0,107880.0,0.0654633]
[1749481894473,3.79341417,107890.0,107880.0,0.0654633]
[1749481896264,2.20172617,107890.0,107880.0,0.0654633]
[1749481897066,2.05921047,107890.0,107880.0,0.0654633]
[1749481897276,2.12146503,107890.0,107880.0,0.2507657]
[1749481897470,2.12106503,107890.0,107880.0,0.2507657]
[1749481897666,2.12146503,107890.0,107880.0,0.0654633]
[1749481898160,2.12146503,107890.0,107880.0,0.4262633]
[1749481898161,1.1900782,107890.0,107880.0,0.4262633]
[1749481898363,1.5576524,107890.0,107880.0,0.4262633]
[1749481898559,1.6152391,107890.0,107880.0,0.4262633]
[1749481899270,1.61531928,107890.0,107880.0,0.4262633]
[1749481899468,1.65445182,107890.0,107880.0,0.4262633]
[1749481899774,1.56176382,107890.0,107880.0,0.4262633]
[1749481899970,1.56176382,107890.0,107880.0,0.4352733]
[1749481900166,1.37228716,107890.0,107880.0,0.4352733]
[1749481900570,1.56176382,107890.0,107880.0,0.4352733]
[1749481901373,1.75106382,107890.0,107880.0,0.4352733]
[1749481902070,1.91694517,107890.0,107880.0,0.4352733]
[1749481903072,2.07084517,107890.0,107880.0,0.4352733]
[1749481906074,2.07044517,107890.0,107880.0,0.4352733]
[1749481906673,2.07044517,107890.0,107880.0,0.4979733]
[1749481907070,1.44680851,107890.0,107880.0,0.4979733]
[1749481907277,2.07064517,107890.0,107880.0,0.4979733]
[1749481907572,2.00774517,107890.0,107880.0,0.4979733]
[1749481907771,2.00774517,107890.0,107880.0,0.5614733]
[1749481908868,1.78865717,107890.0,107880.0,0.5614733]
[1749481909076,1.25045717,107890.0,107880.0,0.5614733]
[1749481909375,1.73119047,107890.0,107880.0,0.5614733]
[1749481909573,1.03897047,107890.0,107880.0,0.5614733]
[1749481909872,1.57693047,107890.0,107880.0,0.5614733]
[1749481910078,1.57689047,107890.0,107880.0,0.746776]
[1749481910283,1.57729047,107890.0,107880.0,0.746776]
[1749481910581,1.57729047,107890.0,107880.0,0.5614733]
[1749481912874,0.95349381,107890.0,107880.0,0.746776]
[1749481913078,1.53361477,107890.0,107880.0,0.5614733]
[1749481915980,1.57689047,107890.0,107880.0,0.5614733]
[1749481917076,1.38741381,107890.0,107880.0,0.5614733]
[1749481917272,1.57689047,107890.0,107880.0,0.5614733]
[1749481918378,1.53361477,107890.0,107880.0,0.5614733]
[1749481919273,1.57689047,107890.0,107880.0,0.5614733]
[1749481920976,1.38741381,107890.0,107880.0,0.5614733]
[1749481921187,1.57689047,107890.0,107880.0,0.5614733]
[1749481922068,1.03897047,107890.0,107880.0,0.2006733]
[1749481922270,0.1853027,107880.0,107870.0,0.4229]
[1749481922469,0.1853199,107870.0,107860.0,0.4238]
[1749481922673,1.0196381,107870.0,107860.0,0.489]
[1749481922986,1.0629138,107870.0,107860.0,0.58169129]
[1749481923176,1.1281138,107870.0,107860.0,0.58169129]
[1749481924285,1.1281138,107870.0,107860.0,0.58369129]
[1749481925383,1.0848381,107870.0,107860.0,0.58269129]
[1749481928385,1.0848381,107870.0,107860.0,0.65049129]
[1749481930384,1.0848381,107870.0,107860.0,0.64949129]
[1749481934288,0.89536144,107870.0,107860.0,0.45349129]
[1749481934587,1.1502381,107870.0,107860.0,0.45349129]
[1749481935377,1.1502381,107870.0,107860.0,0.51749129]
[1749481935581,1.1502381,107870.0,107860.0,0.45349129]
[1749481936386,2.6502381,107870.0,107860.0,0.45349129]
[1749481937384,1.72684144,107870.0,107860.0,0.45349129]
[1749481937585,1.9163181,107870.0,107860.0,0.76692859]
[1749481937782,2.26256144,107870.0,107860.0,0.58159129]
[1749481938090,2.2214399,107870.0,107860.0,0.58159129]
[1749481938592,0.7214399,107870.0,107860.0,0.58159129]
[1749481939088,0.7213999,107870.0,107860.0,0.58159129]
[1749481939286,0.1857199,107870.0,107860.0,0.58159129]
[1749481939485,0.7213199,107870.0,107860.0,0.58159129]
[1749481939693,0.1857199,107870.0,107860.0,0.76692869]
[1749481939884,0.7193999,107870.0,107860.0,0.58159129]
[1749481940079,0.7197999,107870.0,107860.0,0.58159129]
[1749481940988,0.0004,107870.0,107860.0,0.76692859]
[1749481941190,0.53432,107870.0,107860.0,0.95640525]
[1749481941387,0.7192401,107870.0,107860.0,0.95640525]
[1749481941586,0.53432,107870.0,107860.0,0.95640525]
[1749481942590,0.0004,107870.0,107860.0,0.95640525]
[1749481942789,0.53416,107870.0,107860.0,0.95640525]
[1749481943492,0.53376,107870.0,107860.0,0.95640525]
[1749481943694,0.53416,107870.0,107860.0,1.07321874]
[1749481944087,0.10288,107870.0,107860.0,1.07321874]
[1749481944282,0.53412,107870.0,107860.0,1.07321874]
[1749481944488,0.53372,107870.0,107860.0,1.21656398]
[1749481944791,0.0004,107870.0,107860.0,1.44446249]
[1749481944987,0.53416,107870.0,107860.0,1.44446249]
[1749481945497,0.7194801,107870.0,107860.0,1.44446249]
[1749481945891,0.7194801,107870.0,107860.0,1.19446249]
[1749481946194,0.7194801,107870.0,107860.0,1.30919459]
[1749481946789,0.7194801,107870.0,107860.0,1.19446249]
[1749481946989,0.7194801,107870.0,107860.0,0.88366373]
[1749481952397,0.2882001,107870.0,107860.0,1.07314039]
[1749481952599,0.0004,107870.0,107860.0,1.07314039]
[1749481952905,0.7186402,107870.0,107860.0,1.07314039]
[1749481953204,0.53332,107870.0,107860.0,1.07314039]
[1749481953905,0.7186402,107870.0,107860.0,1.07314039]
[1749481954203,0.53312,107870.0,107860.0,1.07314039]
[1749481957500,0.53272,107870.0,107860.0,1.07314039]
[1749481957803,0.53312,107870.0,107860.0,1.07314039]
[1749481961306,0.10288,107870.0,107860.0,1.07314039]
[1749481961507,0.53268,107870.0,107860.0,1.07314039]
[1749481962603,0.0004,107870.0,107860.0,1.07314039]
[1749481962802,0.82686507,107890.0,107880.0,0.1853033]
[1749481963110,1.29742507,107890.0,107880.0,0.9069033]
[1749481963302,0.63552607,107890.0,107880.0,1.22467996]
[1749481963504,1.25065217,107890.0,107880.0,1.31738843]
[1749481963802,0.11240607,107890.0,107880.0,1.31738843]
[1749481963996,0.64508607,107890.0,107880.0,1.31738843]
[1749481964199,0.83077217,107890.0,107880.0,1.31738843]
[1749481964401,0.64508607,107890.0,107880.0,1.31738843]
[1749481964701,0.64508607,107890.0,107880.0,1.43212357]
[1749481964702,0.83077217,107890.0,107880.0,1.43212357]
[1749481966105,0.11280607,107890.0,107880.0,1.31738843]
[1749481966408,0.64520607,107890.0,107880.0,1.43212357]
[1749481967010,0.60567353,107890.0,107880.0,1.43212357]
[1749481967204,0.17615353,107890.0,107880.0,1.43212357]
[1749481967406,0.60595353,107890.0,107880.0,1.43212357]
[1749481967605,0.60595353,107890.0,107880.0,1.31738843]
[1749481967803,0.60555353,107890.0,107880.0,1.31738843]
[1749481968109,0.60595353,107890.0,107880.0,1.31738843]
[1749481968310,0.07367353,107890.0,107880.0,1.4320521]
[1749481968513,0.07367353,107890.0,107880.0,1.59955309]
[1749481968909,0.04531017,107900.0,107890.0,0.185286]
[1749481969105,0.53252,107900.0,107890.0,0.92776266]
[1749481969308,0.53252,107900.0,107890.0,1.18574009]
[1749481969309,0.60654266,107900.0,107890.0,1.18574009]
[1749481969511,0.60654266,107900.0,107890.0,1.27843138]
[1749481970007,0.60662703,107900.0,107890.0,1.27843138]
[1749481970205,0.65305727,107900.0,107890.0,1.16479919]
[1749481970406,0.65345727,107900.0,107890.0,1.13610684]
[1749481971113,0.65345727,107900.0,107890.0,1.27946176]
[1749481971606,0.22337727,107900.0,107890.0,1.27946176]
[1749481971807,0.07450703,107900.0,107890.0,1.13611652]
[1749481972010,0.60566703,107900.0,107890.0,1.16479919]
[1749481972213,0.60606703,107900.0,107890.0,1.16479919]
[1749481974007,0.07410703,107900.0,107890.0,1.16479919]
[1749481974204,0.07450703,107900.0,107890.0,1.16479919]
[1749481974401,0.07410703,107900.0,107890.0,1.16479919]
[1749481974709,0.07450703,107900.0,107890.0,1.16479919]
[1749481975313,0.00048437,107900.0,107890.0,1.16479919]
[1749481975502,8.437e-05,107900.0,107890.0,1.66049919]
[1749481976315,0.00048437,107900.0,107890.0,1.66049919]
[1749481976618,8.437e-05,107900.0,107890.0,1.66049919]
[1749481976813,0.00040007,107900.0,107890.0,1.66049919]
[1749481977406,0.00040007,107900.0,107890.0,1.70729547]
[1749481977603,0.11557777,107920.0,107910.0,0.1852515]
[1749481977819,0.2479123,107940.0,107930.0,0.1852171]
[1749481978110,0.3495923,107940.0,107930.0,0.9068171]
[1749481978314,0.53128,107940.0,107930.0,1.18897646]
[1749481978608,0.4219873,107950.0,107940.0,0.1852]
[1749481978813,0.06276917,107950.0,107940.0,0.73547666]
[1749481979010,0.77935197,107950.0,107940.0,0.6097]
[1749481979211,0.04739323,107950.0,107940.0,0.95482501]
[1749481979413,6.917e-05,107950.0,107940.0,0.76534835]
[1749481979711,6.917e-05,107950.0,107940.0,0.95482501]
[1749481979908,0.00046917,107950.0,107940.0,0.95482501]
[1749481980107,6.917e-05,107950.0,107940.0,0.95482501]
[1749481980311,0.00046917,107950.0,107940.0,0.95482501]
[1749481980513,6.917e-05,107950.0,107940.0,0.95482501]
[1749481980716,0.00046917,107950.0,107940.0,0.95482501]
[1749481981011,6.917e-05,107950.0,107940.0,0.95482501]
[1749481981204,0.00046917,107950.0,107940.0,0.95482501]
[1749481981907,0.00046917,107950.0,107940.0,0.76534835]
[1749481982107,0.18565197,107950.0,107940.0,0.76534835]
[1749481982306,0.00046917,107950.0,107940.0,0.76534835]
[1749481982507,0.00046917,107950.0,107940.0,0.95482501]
[1749481982910,6.917e-05,107950.0,107940.0,0.95482501]
[1749481983109,0.00046917,107950.0,107940.0,1.04746501]
[1749481983518,6.917e-05,107950.0,107940.0,1.04746501]
[1749481983810,0.00046917,107950.0,107940.0,1.04746501]
[1749481984512,0.4181294,107980.0,107970.0,0.1851486]
[1749481984716,0.4181294,107980.0,107970.0,0.9067486]
[1749481984717,0.9045514,107980.0,107970.0,0.9067486]
[1749481984914,0.9049514,107980.0,107970.0,1.0308486]
[1749481985111,0.81784206,107980.0,107970.0,0.99938837]
[1749481985311,0.89170806,107980.0,107970.0,0.99938837]
[1749481985513,1.28059704,107980.0,107970.0,0.99938837]
[1749481985714,0.9370737,107980.0,107970.0,0.99938837]
[1749481986016,1.4700737,107980.0,107970.0,0.99938837]
[1749481986621,0.56246564,107980.0,107970.0,0.99938837]
[1749481986814,0.37576564,107980.0,107970.0,0.99938837]
[1749481987015,0.37536564,107980.0,107970.0,1.12488837]
[1749481987327,0.98198623,107980.0,107970.0,1.37636503]
[1749481987615,0.44858623,107980.0,107970.0,1.37636503]
[1749481988013,0.37576564,107980.0,107970.0,1.37636503]
[1749481988219,0.37576564,107980.0,107970.0,1.18688837]
[1749481988414,0.33008416,107980.0,107970.0,1.37636503]
[1749481988614,0.33048416,107980.0,107970.0,1.37636503]
[1749481989316,0.25801076,107980.0,107970.0,1.37636503]
[1749481989615,0.25801076,107980.0,107970.0,1.57062103]
[1749481989816,0.25801076,107980.0,107970.0,1.57058103]
[1749481990016,0.25761076,107980.0,107970.0,1.57058103]
[1749481990315,0.25801076,107980.0,107970.0,1.57058103]
[1749481990518,0.25801076,107980.0,107970.0,2.00390103]
[1749481991018,0.25761076,107980.0,107970.0,2.00390103]
[1749481991214,0.25761076,107980.0,107970.0,1.28050437]
[1749481991215,0.25801076,107980.0,107970.0,1.28050437]
[1749481991419,0.25801076,107980.0,107970.0,1.18788837]
[1749481991614,0.25801076,107980.0,107970.0,1.47896503]
[1749481991919,0.25801076,107980.0,107970.0,1.37736503]
[1749481993319,0.25801076,107980.0,107970.0,1.46998103]
[1749481993516,0.33374476,107980.0,107970.0,1.46998103]
[1749481993716,0.33414476,107980.0,107970.0,1.46998103]
[1749481993920,0.33374476,107980.0,107970.0,1.90234103]
[1749481994118,0.33414476,107980.0,107970.0,1.46998103]
[1749481994322,0.33414476,107980.0,107970.0,1.91128503]
[1749481994518,1.14320464,107980.0,107970.0,1.00038837]
[1749481994922,1.27370464,107980.0,107970.0,1.00038837]
[1749481996127,1.27370464,107980.0,107970.0,0.99938837]
[1749481997023,0.84086464,107980.0,107970.0,0.99938837]